[Event "27th Seacost Trophy 2017"]
[Site "Eforie Nord"]
[Date "2017.06.28"]
[Round "10"]
[White "Calin, Alexandru"]
[Black "Itkis, Boris"]
[Result "1-0"]
[ECO "A45"]
[WhiteElo "2081"]
[BlackElo "2371"]
[Annotator "NA"]
[PlyCount "96"]
[EventDate "2017.??.??"]
[EventType "swiss"]
[EventCountry "ROU"]
[SourceTitle "playchess.com"]
[Source "ChessBase"]
[SourceQuality "1"]
[TimeControl "5400+30"]

1. d4 {[%emt 0:00:00]} Nf6 {[%emt 0:00:07]} 2. Bg5 {[%emt 0:00:00]} e6 {[%emt 0:00:06]} 3. e4 {[%emt 0:00:00]} c5 {[%emt 0:00:05]} 4. d5 {[%emt 0:09:34]} h6 {[%emt 0:07:56] A45: Trompowsky Attack} 5. Bxf6 {[%emt 0:00:18]} Qxf6 {[%emt 0:00:06]} 6. Nc3 {[%emt 0:00:10]} a6 {[%emt 0:00:28]} 7. Nf3 {[%emt 0:00:46]} d6 {[%emt 0:00:04]} (7... e5 8. a4 d6 9. Be2 g6 10. O-O Bg7 11. Nd2 O-O 12. Nc4 {½-½ (38) Kanep,M (2485)-Piorun,K (2657) Tallinn 2016}) 8. a4 {[%emt 0:06:23]} Nd7 {[%emt 0:08:10]} 9. Be2 {[%emt 0:02:45] LiveBook: 7 Games} Qd8 $146 {[%emt 0:03:37]} ({Predecessor:} 9... Be7 $14 10. O-O O-O 11. Ra3 Rd8 12. Nd2 {½-½ (60) Naoum,S (2283)-Kelires,A (2464) Achaea 2016}) 10. dxe6 {[%emt 0:06:05]} fxe6 {[%emt 0:00:08]} 11. Nd2 {[%emt 0:00:02]} g6 {[%emt 0:07:04]} 12. O-O {[%emt 0:01:42]} Be7 {[%emt 0:02:15]} 13. Bc4 {[%emt 0:04:40]} Ne5 {[%emt 0:06:42]} 14. f4 {[%emt 0:02:31]} Nxc4 {[%emt 0:00:12]} 15. Nxc4 {[%emt 0:00:03]} O-O {[%emt 0:02:57]} 16. Qd3 {[%emt 0:00:51]} Kg7 {[%emt 0:01:55]} (16... Kh7 $16 17. Rad1 b5) 17. Rad1 {[%emt 0:01:44]} Bf6 {[%emt 0:03:44]} 18. Ne2 $2 {[%emt 0:02:43]} (18. e5 $18 {is the precise move to win.} dxe5 19. Qh3 (19. Nxe5 Qxd3 20. Rxd3 b5 $16) (19. fxe5 Be7 $18)) 18... d5 {[%emt 0:00:57]} 19. Ne5 {[%emt 0:10:45]} Qe8 {[%emt 0:31:42]} 20. exd5 {[%emt 0:02:53]} exd5 {[%emt 0:00:05]} 21. Qxd5 {[%emt 0:00:50]} Qe7 {[%emt 0:01:55]} 22. Ng3 {[%emt 0:01:28]} Bxe5 {[%emt 0:00:12]} 23. Rde1 {[%emt 0:08:23]} Qd6 {[%emt 0:03:49]} 24. Qxe5+ {[%emt 0:00:36]} Qxe5 {[%emt 0:00:01]} 25. Rxe5 {[%emt 0:00:22]} Bd7 {[%emt 0:00:26]} 26. a5 {[%emt 0:01:29]} Bb5 {[%emt 0:01:50]} 27. Re7+ {[%emt 0:06:10]} Rf7 {[%emt 0:00:08]} 28. Rfe1 {[%emt 0:00:24]} Bc6 {[%emt 0:03:20]} 29. f5 {[%emt 0:01:17]} Rd8 {[%emt 0:00:57]} 30. fxg6 $16 {[%emt 0:07:14]} Rxe7 {[%emt 0:00:14]} 31. Rxe7+ {[%emt 0:00:03]} Kxg6 {[%emt 0:00:06]} 32. Kf2 {[%emt 0:09:07]} Rd4 {[%emt 0:01:41]} 33. Re5 {[%emt 0:00:43]} Rd2+ {[%emt 0:02:41]} 34. Re2 {[%emt 0:00:14]} Rd4 {[%emt 0:01:02]} 35. Re6+ {[%emt 0:06:23]} Kf7 {[%emt 0:00:21]} 36. Re5 {[%emt 0:01:11]} Rd2+ {[%emt 0:02:17]} 37. Re2 {[%emt 0:00:09]} Rd4 {[%emt 0:00:34]} 38. b3 {[%emt 0:02:14]} Rb4 {[%emt 0:00:57]} 39. Ke1 {[%emt 0:02:15]} c4 {[%emt 0:00:23]} 40. Rf2+ {[%emt 0:00:20]} Kg6 {[%emt 0:01:57]} 41. Rf4 {[%emt 0:00:04]} Bxg2 {[%emt 0:00:52]} 42. Rg4+ {[%emt 0:00:03]} Kf7 {[%emt 0:01:56]} 43. Nf5 {[%emt 0:00:51]} Bd5 {[%emt 0:00:48]} 44. Rd4 {[%emt 0:01:21]} Be6 {[%emt 0:00:50]} 45. Nd6+ {[%emt 0:00:20]} Ke7 {[%emt 0:00:54]} 46. Nxc4 {[%emt 0:01:27]} Rb5 {[%emt 0:00:57]} 47. Kd2 {[%emt 0:00:57]} Rg5 48. h4 Rg3 1-0